[Event "Titled Tuesday Blitz July 25 Early 2023"]
[White "Ai, Evan"]
[Black "Sailer, Mike"]
[WhiteFideId "2094770"]
[BlackFideId "2012901"]
[WhiteElo "2452"]
[BlackElo "2153"]
[Result "0-1"]
[Round "2"]
[TimeControl "180+2"]
[Date "2023.07.25"]
[WhiteClock "0:00:03"]
[BlackClock "0:00:13"]
[Board "229"]

1. e3 {[%clk 0:02:59]}  d5 {[%clk 0:02:57]} 2. d4 {[%clk 0:03:00]}  Bf5 {[%clk 0:02:55]} 3. c4 {[%clk 0:03:00]}  e6 {[%clk 0:02:54]} 4. Nc3 {[%clk 0:03:00]}  Nc6 {[%clk 0:02:55]} 5. Nf3 {[%clk 0:03:01]}  Nb4 {[%clk 0:02:55]} 6. e4 {[%clk 0:03:00]}  dxe4 {[%clk 0:02:55]} 7. Nh4 {[%clk 0:02:58]}  Qxh4 {[%clk 0:02:54]} 8. g3 {[%clk 0:02:57]}  Qd8 {[%clk 0:02:39]} 9. a3 {[%clk 0:02:52]}  Nd3+ {[%clk 0:02:31]} 10. Bxd3 {[%clk 0:02:49]}  exd3 {[%clk 0:02:31]} 11. Be3 {[%clk 0:02:49]}  Nf6 {[%clk 0:02:27]} 12. f3 {[%clk 0:02:47]}  Be7 {[%clk 0:02:09]} 13. h4 {[%clk 0:02:47]}  h6 {[%clk 0:02:09]} 14. Qd2 {[%clk 0:02:45]}  Qd7 {[%clk 0:02:03]} 15. g4 {[%clk 0:02:44]}  Bh7 {[%clk 0:02:03]} 16. O-O-O {[%clk 0:02:44]}  O-O-O {[%clk 0:01:54]} 17. g5 {[%clk 0:02:41]}  Nh5 {[%clk 0:01:43]} 18. Rdg1 {[%clk 0:02:31]}  hxg5 {[%clk 0:01:37]} 19. hxg5 {[%clk 0:02:32]}  Bg6 {[%clk 0:01:35]} 20. Nb5 {[%clk 0:01:57]}  a6 {[%clk 0:01:17]} 21. Qa5 {[%clk 0:01:57]}  Kb8 {[%clk 0:01:07]} 22. d5 {[%clk 0:01:14]}  Rc8 {[%clk 0:01:01]} 23. Na7 {[%clk 0:01:03]}  exd5 {[%clk 0:00:56]} 24. cxd5 {[%clk 0:00:46]}  d2+ {[%clk 0:00:39]} 25. Kd1 {[%clk 0:00:39]}  Qf5 {[%clk 0:00:30]} 26. Qxd2 {[%clk 0:00:10]}  Qxf3+ {[%clk 0:00:28]} 27. Kc1 {[%clk 0:00:08]}  Qe4 {[%clk 0:00:27]} 28. Kd1 {[%clk 0:00:06]}  Bf5 {[%clk 0:00:18]} 29. Ke1 {[%clk 0:00:03]}  Bd6 {[%clk 0:00:13]} 0-1


[Site "https://www.chess.com"]

[Event "Titled Tuesday Blitz July 25 Early 2023"]
[White "Lisjak, Zlatko"]
[Black "Liu, Casper"]
[WhiteFideId "14502186"]
[BlackFideId "1454153"]
[WhiteElo "2129"]
[BlackElo "2449"]
[Result "0-1"]
[Round "2"]
[TimeControl "180+2"]
[Date "2023.07.25"]
[WhiteClock "0:00:02"]
[BlackClock "0:00:21"]
[Board "233"]

1. d4 {[%clk 0:03:00]}  Nf6 {[%clk 0:02:58]} 2. Nc3 {[%clk 0:03:01]}  g6 {[%clk 0:02:59]} 3. Bf4 {[%clk 0:02:55]}  Bg7 {[%clk 0:02:59]} 4. h4 {[%clk 0:02:51]}  O-O {[%clk 0:02:59]} 5. e3 {[%clk 0:02:51]}  d6 {[%clk 0:02:59]} 6. h5 {[%clk 0:02:51]}  Nxh5 {[%clk 0:02:58]} 7. Rxh5 {[%clk 0:02:50]}  gxh5 {[%clk 0:02:59]} 8. Qxh5 {[%clk 0:02:49]}  e5 {[%clk 0:02:59]} 9. Bg5 {[%clk 0:02:38]}  Qe8 {[%clk 0:02:57]} 10. O-O-O {[%clk 0:02:37]}  f6 {[%clk 0:02:57]} 11. Qxe8 {[%clk 0:02:12]}  Rxe8 {[%clk 0:02:58]} 12. Nd5 {[%clk 0:01:58]}  fxg5 {[%clk 0:02:50]} 13. Nxc7 {[%clk 0:01:56]}  Re7 {[%clk 0:02:46]} 14. Nxa8 {[%clk 0:01:54]}  b6 {[%clk 0:02:43]} 15. dxe5 {[%clk 0:01:46]}  Bxe5 {[%clk 0:02:27]} 16. Nf3 {[%clk 0:01:45]}  Nc6 {[%clk 0:02:22]} 17. Bb5 {[%clk 0:01:27]}  Bb7 {[%clk 0:02:21]} 18. Nxe5 {[%clk 0:01:08]}  dxe5 {[%clk 0:02:22]} 19. Bxc6 {[%clk 0:01:01]}  Bxc6 {[%clk 0:02:22]} 20. Rd8+ {[%clk 0:00:59]}  Kf7 {[%clk 0:02:06]} 21. g3 {[%clk 0:00:55]}  h5 {[%clk 0:01:10]} 22. f4 {[%clk 0:00:41]}  exf4 {[%clk 0:01:02]} 23. exf4 {[%clk 0:00:40]}  gxf4 {[%clk 0:00:49]} 24. gxf4 {[%clk 0:00:39]}  Bf3 {[%clk 0:00:30]} 25. Rh8 {[%clk 0:00:22]}  Kg7 {[%clk 0:00:26]} 26. Rc8 {[%clk 0:00:19]}  h4 {[%clk 0:00:24]} 27. Nc7 {[%clk 0:00:15]}  h3 {[%clk 0:00:24]} 28. Ne8+ {[%clk 0:00:10]}  Kg6 {[%clk 0:00:21]} 29. f5+ {[%clk 0:00:02]}  Kg5 {[%clk 0:00:21]} 0-1


[Site "https://www.chess.com"]

[Event "Titled Tuesday Blitz July 25 Early 2023"]
[White "Zheenbekov, Nurgazy"]
[Black "Floresvillar Gonzalez, Luis Migu"]
[WhiteFideId "13800485"]
[BlackFideId "5100542"]
[WhiteElo "2443"]
[BlackElo "2105"]
[Result "1-0"]
[Round "2"]
[TimeControl "180+2"]
[Date "2023.07.25"]
[WhiteClock "0:01:29"]
[BlackClock "0:00:57"]
[Board "238"]

1. e4 {[%clk 0:03:00]}  c5 {[%clk 0:03:00]} 2. Nf3 {[%clk 0:02:59]}  d6 {[%clk 0:03:00]} 3. Bb5+ {[%clk 0:02:59]}  Nd7 {[%clk 0:02:56]} 4. a4 {[%clk 0:02:58]}  a6 {[%clk 0:02:56]} 5. Bc4 {[%clk 0:02:58]}  e6 {[%clk 0:02:56]} 6. O-O {[%clk 0:02:57]}  Be7 {[%clk 0:02:53]} 7. c3 {[%clk 0:02:57]}  Bf6 {[%clk 0:02:51]} 8. d4 {[%clk 0:02:56]}  cxd4 {[%clk 0:02:47]} 9. cxd4 {[%clk 0:02:56]}  Ne7 {[%clk 0:02:45]} 10. Nc3 {[%clk 0:02:56]}  Qc7 {[%clk 0:02:44]} 11. Qe2 {[%clk 0:02:55]}  O-O {[%clk 0:02:36]} 12. Bb3 {[%clk 0:02:55]}  g6 {[%clk 0:02:34]} 13. Bh6 {[%clk 0:02:54]}  Re8 {[%clk 0:02:32]} 14. Rfe1 {[%clk 0:02:53]}  b6 {[%clk 0:02:23]} 15. h4 {[%clk 0:02:52]}  Bb7 {[%clk 0:02:19]} 16. Rac1 {[%clk 0:02:52]}  Qb8 {[%clk 0:02:10]} 17. h5 {[%clk 0:02:52]}  Bg7 {[%clk 0:02:05]} 18. Bxg7 {[%clk 0:02:51]}  Kxg7 {[%clk 0:02:05]} 19. Qe3 {[%clk 0:02:49]}  h6 {[%clk 0:02:01]} 20. Nh2 {[%clk 0:02:40]}  e5 {[%clk 0:01:56]} 21. Ng4 {[%clk 0:02:35]}  g5 {[%clk 0:01:55]} 22. Ne2 {[%clk 0:02:25]}  Rf8 {[%clk 0:01:52]} 23. Ng3 {[%clk 0:02:24]}  Nf6 {[%clk 0:01:46]} 24. Nxf6 {[%clk 0:02:20]}  Kxf6 {[%clk 0:01:46]} 25. dxe5+ {[%clk 0:02:11]}  dxe5 {[%clk 0:01:43]} 26. Red1 {[%clk 0:02:10]}  b5 {[%clk 0:01:32]} 27. a5 {[%clk 0:02:06]}  Ra7 {[%clk 0:01:16]} 28. Rd7 {[%clk 0:02:04]}  Bc8 {[%clk 0:01:14]} 29. Rxa7 {[%clk 0:02:02]}  Be6 {[%clk 0:01:11]} 30. Rxa6 {[%clk 0:01:54]}  b4 {[%clk 0:01:08]} 31. Rb6 {[%clk 0:01:50]}  Qa8 {[%clk 0:01:06]} 32. Nf5 {[%clk 0:01:45]}  Qxa5 {[%clk 0:01:03]} 33. Nxe7 {[%clk 0:01:42]}  Kxe7 {[%clk 0:01:02]} 34. Rc7+ {[%clk 0:01:35]}  Kf6 {[%clk 0:00:59]} 35. Rxe6+ {[%clk 0:01:29]}  fxe6 {[%clk 0:00:57]} 36. Qf3# {[%clk 0:01:29]} 1-0


[Site "https://www.chess.com"]

[Event "Titled Tuesday Blitz July 25 Early 2023"]
[White "Goldin, Roman"]
[Black "Guevara Sanchez, Erick Marvin"]
[WhiteFideId "2803860"]
[BlackFideId "6700136"]
[WhiteElo "2438"]
[BlackElo "2093"]
[Result "1-0"]
[Round "2"]
[TimeControl "180+2"]
[Date "2023.07.25"]
[WhiteClock "0:00:17"]
[BlackClock "0:00:17"]
[Board "240"]

1. e4 {[%clk 0:03:00]}  c5 {[%clk 0:02:59]} 2. Nf3 {[%clk 0:02:59]}  d6 {[%clk 0:02:58]} 3. Bc4 {[%clk 0:02:58]}  e6 {[%clk 0:02:58]} 4. O-O {[%clk 0:02:57]}  Nf6 {[%clk 0:02:57]} 5. d3 {[%clk 0:02:57]}  Nc6 {[%clk 0:02:56]} 6. a3 {[%clk 0:02:58]}  Be7 {[%clk 0:02:55]} 7. Ba2 {[%clk 0:02:59]}  O-O {[%clk 0:02:55]} 8. Nc3 {[%clk 0:02:59]}  d5 {[%clk 0:02:55]} 9. exd5 {[%clk 0:02:58]}  exd5 {[%clk 0:02:55]} 10. Bf4 {[%clk 0:02:58]}  Be6 {[%clk 0:02:53]} 11. h3 {[%clk 0:02:57]}  Rc8 {[%clk 0:02:51]} 12. Re1 {[%clk 0:02:58]}  a6 {[%clk 0:02:47]} 13. Qd2 {[%clk 0:02:57]}  Bd6 {[%clk 0:02:46]} 14. Bg5 {[%clk 0:02:53]}  Be7 {[%clk 0:02:44]} 15. Re2 {[%clk 0:02:46]}  h6 {[%clk 0:02:42]} 16. Bh4 {[%clk 0:02:45]}  Qd7 {[%clk 0:02:35]} 17. Rae1 {[%clk 0:02:38]}  Rfd8 {[%clk 0:02:33]} 18. Ne5 {[%clk 0:02:36]}  Nxe5 {[%clk 0:02:32]} 19. Rxe5 {[%clk 0:02:36]}  Qc6 {[%clk 0:02:14]} 20. g4 {[%clk 0:02:12]}  Kf8 {[%clk 0:01:57]} 21. Qe2 {[%clk 0:02:08]}  Kg8 {[%clk 0:01:53]} 22. f4 {[%clk 0:02:08]}  c4 {[%clk 0:01:45]} 23. f5 {[%clk 0:02:05]}  Bc5+ {[%clk 0:01:39]} 24. Bf2 {[%clk 0:01:55]}  Bxf2+ {[%clk 0:01:36]} 25. Qxf2 {[%clk 0:01:53]}  Bd7 {[%clk 0:01:35]} 26. d4 {[%clk 0:01:46]}  Qb6 {[%clk 0:01:29]} 27. Nd1 {[%clk 0:01:24]}  Ne4 {[%clk 0:01:23]} 28. Qe3 {[%clk 0:01:20]}  Bc6 {[%clk 0:01:21]} 29. c3 {[%clk 0:01:19]}  Re8 {[%clk 0:01:05]} 30. Bb1 {[%clk 0:01:18]}  Rxe5 {[%clk 0:00:50]} 31. dxe5 {[%clk 0:01:18]}  Qxe3+ {[%clk 0:00:46]} 32. Nxe3 {[%clk 0:01:15]}  Nd2 {[%clk 0:00:47]} 33. Kf2 {[%clk 0:00:49]}  Re8 {[%clk 0:00:43]} 34. Nc2 {[%clk 0:00:47]}  Nxb1 {[%clk 0:00:42]} 35. Rxb1 {[%clk 0:00:47]}  Rxe5 {[%clk 0:00:43]} 36. Nd4 {[%clk 0:00:47]}  Re4 {[%clk 0:00:42]} 37. b3 {[%clk 0:00:41]}  Kf8 {[%clk 0:00:17]} 38. bxc4 {[%clk 0:00:40]}  dxc4 {[%clk 0:00:18]} 39. Nxc6 {[%clk 0:00:38]}  bxc6 {[%clk 0:00:19]} 40. Rb6 {[%clk 0:00:38]}  Re5 {[%clk 0:00:19]} 41. Rxa6 {[%clk 0:00:35]}  Rb5 {[%clk 0:00:19]} 42. Ke3 {[%clk 0:00:34]}  Rb3 {[%clk 0:00:19]} 43. Kd4 {[%clk 0:00:34]}  Ke7 {[%clk 0:00:18]} 44. Kxc4 {[%clk 0:00:35]}  Rb2 {[%clk 0:00:18]} 45. Rxc6 {[%clk 0:00:35]}  Rh2 {[%clk 0:00:17]} 46. Rc7+ {[%clk 0:00:34]}  Kf6 {[%clk 0:00:17]} 47. a4 {[%clk 0:00:34]}  Rxh3 {[%clk 0:00:18]} 48. a5 {[%clk 0:00:34]}  Rg3 {[%clk 0:00:18]} 49. a6 {[%clk 0:00:34]}  Rxg4+ {[%clk 0:00:19]} 50. Kb5 {[%clk 0:00:34]}  Rg2 {[%clk 0:00:19]} 51. a7 {[%clk 0:00:34]}  Rb2+ {[%clk 0:00:19]} 52. Kc5 {[%clk 0:00:34]}  Ra2 {[%clk 0:00:20]} 53. Kb6 {[%clk 0:00:20]}  h5 {[%clk 0:00:20]} 54. Rc6+ {[%clk 0:00:19]}  Kxf5 {[%clk 0:00:20]} 55. Rc5+ {[%clk 0:00:20]}  Kg4 {[%clk 0:00:19]} 56. Ra5 {[%clk 0:00:20]}  Rb2+ {[%clk 0:00:19]} 57. Kc5 {[%clk 0:00:20]}  Rc2 {[%clk 0:00:17]} 58. a8=Q {[%clk 0:00:19]}  Rxc3+ {[%clk 0:00:18]} 59. Kd4 {[%clk 0:00:19]}  Rg3 {[%clk 0:00:19]} 60. Qe4+ {[%clk 0:00:18]}  Kh3 {[%clk 0:00:17]} 61. Rxh5# {[%clk 0:00:17]} 1-0


[Site "https://www.chess.com"]

[Event "Titled Tuesday Blitz July 25 Early 2023"]
[White "Wisniowski, Natalie"]
[Black "Vivas Zamora, Fabian Ernesto"]
[WhiteFideId "30929261"]
[BlackFideId "3902480"]
[WhiteElo "2084"]
[BlackElo "2438"]
[Result "0-1"]
[Round "2"]
[TimeControl "180+2"]
[Date "2023.07.25"]
[WhiteClock "0:00:02"]
[BlackClock "0:01:02"]
[Board "241"]

1. e4 {[%clk 0:03:00]}  e5 {[%clk 0:02:56]} 2. Nf3 {[%clk 0:02:58]}  Nc6 {[%clk 0:02:56]} 3. d4 {[%clk 0:02:58]}  exd4 {[%clk 0:02:57]} 4. Bc4 {[%clk 0:02:57]}  Nf6 {[%clk 0:02:57]} 5. e5 {[%clk 0:02:46]}  d5 {[%clk 0:02:57]} 6. Bb5 {[%clk 0:02:44]}  Ne4 {[%clk 0:02:57]} 7. Bxc6+ {[%clk 0:02:41]}  bxc6 {[%clk 0:02:58]} 8. O-O {[%clk 0:02:41]}  c5 {[%clk 0:02:50]} 9. Re1 {[%clk 0:02:30]}  Be7 {[%clk 0:02:48]} 10. Bf4 {[%clk 0:01:36]}  O-O {[%clk 0:02:44]} 11. Nbd2 {[%clk 0:01:30]}  Bf5 {[%clk 0:02:43]} 12. Nb3 {[%clk 0:01:26]}  f6 {[%clk 0:02:31]} 13. exf6 {[%clk 0:01:15]}  Rxf6 {[%clk 0:02:27]} 14. Be5 {[%clk 0:01:04]}  Rg6 {[%clk 0:02:17]} 15. Bg3 {[%clk 0:00:38]}  Bg4 {[%clk 0:02:12]} 16. Nbd2 {[%clk 0:00:31]}  Nxd2 {[%clk 0:02:07]} 17. Qxd2 {[%clk 0:00:31]}  Bxf3 {[%clk 0:02:07]} 18. gxf3 {[%clk 0:00:31]}  Bd6 {[%clk 0:01:53]} 19. Kh1 {[%clk 0:00:30]}  Qf6 {[%clk 0:01:50]} 20. Qe2 {[%clk 0:00:26]}  Rf8 {[%clk 0:01:49]} 21. f4 {[%clk 0:00:19]}  Bxf4 {[%clk 0:01:47]} 22. Qf3 {[%clk 0:00:10]}  c6 {[%clk 0:01:21]} 23. Bxf4 {[%clk 0:00:09]}  Qxf4 {[%clk 0:01:21]} 24. Qxf4 {[%clk 0:00:10]}  Rxf4 {[%clk 0:01:22]} 25. Re2 {[%clk 0:00:08]}  h6 {[%clk 0:01:20]} 26. Rae1 {[%clk 0:00:07]}  c4 {[%clk 0:01:19]} 27. Rd2 {[%clk 0:00:04]}  Rgf6 {[%clk 0:01:18]} 28. Rf1 {[%clk 0:00:04]}  c5 {[%clk 0:01:17]} 29. Kg2 {[%clk 0:00:04]}  Rb6 {[%clk 0:01:14]} 30. b3 {[%clk 0:00:04]}  a5 {[%clk 0:01:12]} 31. bxc4 {[%clk 0:00:04]}  dxc4 {[%clk 0:01:12]} 32. Re2 {[%clk 0:00:04]}  Rb2 {[%clk 0:01:11]} 33. Re5 {[%clk 0:00:05]}  Rxc2 {[%clk 0:01:07]} 34. Rxc5 {[%clk 0:00:03]}  a4 {[%clk 0:01:08]} 35. Ra5 {[%clk 0:00:02]}  Rxa2 {[%clk 0:01:07]} 36. Rc5 {[%clk 0:00:02]}  d3 {[%clk 0:01:06]} 37. Rc8+ {[%clk 0:00:02]}  Kh7 {[%clk 0:01:06]} 38. Rc6 {[%clk 0:00:02]}  d2 {[%clk 0:01:05]} 39. Rd6 {[%clk 0:00:02]}  c3 {[%clk 0:01:04]} 40. Rd3 {[%clk 0:00:02]}  c2 {[%clk 0:01:02]} 41. Rxd2 {[%clk 0:00:02]}  c1=Q {[%clk 0:01:02]} 42. Rxc1 {[%clk 0:00:02]}  Rxd2 {[%clk 0:01:02]} 43. Rf1 {[%clk 0:00:02]}  a3 {[%clk 0:01:02]} 0-1


[Site "https://www.chess.com"]

[Event "Titled Tuesday Blitz July 25 Early 2023"]
[White "Maluco_do_Natal_00"]
[Black "JonSnowNW1"]
[WhiteElo "2044"]
[BlackElo "2427"]
[Result "0-1"]
[Round "2"]
[TimeControl "180+2"]
[Date "2023.07.25"]
[WhiteClock "0:00:02"]
[BlackClock "0:00:05"]
[Board "246"]

1. e4 {[%clk 0:03:00]}  c5 {[%clk 0:03:00]} 2. Nf3 {[%clk 0:03:00]}  d6 {[%clk 0:03:00]} 3. d4 {[%clk 0:03:01]}  cxd4 {[%clk 0:03:01]} 4. Nxd4 {[%clk 0:03:02]}  Nf6 {[%clk 0:03:01]} 5. Nc3 {[%clk 0:03:02]}  a6 {[%clk 0:03:01]} 6. Be3 {[%clk 0:03:02]}  e5 {[%clk 0:03:01]} 7. Nb3 {[%clk 0:03:02]}  Be7 {[%clk 0:03:01]} 8. f3 {[%clk 0:03:02]}  Be6 {[%clk 0:03:01]} 9. Qd2 {[%clk 0:03:03]}  h5 {[%clk 0:03:01]} 10. O-O-O {[%clk 0:03:00]}  Nbd7 {[%clk 0:03:01]} 11. h3 {[%clk 0:03:00]}  h4 {[%clk 0:03:01]} 12. f4 {[%clk 0:02:44]}  exf4 {[%clk 0:02:52]} 13. Bxf4 {[%clk 0:02:43]}  Nh5 {[%clk 0:02:52]} 14. Be3 {[%clk 0:02:34]}  Ng3 {[%clk 0:02:51]} 15. Rg1 {[%clk 0:02:33]}  Rc8 {[%clk 0:02:48]} 16. Bd3 {[%clk 0:02:25]}  Ne5 {[%clk 0:02:47]} 17. Kb1 {[%clk 0:02:20]}  O-O {[%clk 0:02:40]} 18. Nd5 {[%clk 0:02:14]}  Bxd5 {[%clk 0:02:36]} 19. exd5 {[%clk 0:02:15]}  Nxd3 {[%clk 0:02:32]} 20. Qxd3 {[%clk 0:02:04]}  Bg5 {[%clk 0:02:31]} 21. Bf2 {[%clk 0:01:50]}  Nh5 {[%clk 0:02:23]} 22. Qf5 {[%clk 0:01:24]}  Qf6 {[%clk 0:02:17]} 23. Nd4 {[%clk 0:01:09]}  g6 {[%clk 0:02:01]} 24. Qg4 {[%clk 0:00:39]}  Qxf2 {[%clk 0:00:53]} 25. Qxg5 {[%clk 0:00:32]}  Rc4 {[%clk 0:00:49]} 26. c3 {[%clk 0:00:22]}  Re8 {[%clk 0:00:36]} 27. Rgf1 {[%clk 0:00:13]}  Qe3 {[%clk 0:00:28]} 28. Qxh4 {[%clk 0:00:06]}  Qe4+ {[%clk 0:00:14]} 29. Qxe4 {[%clk 0:00:06]}  Rxe4 {[%clk 0:00:14]} 30. Rde1 {[%clk 0:00:04]}  Rxe1+ {[%clk 0:00:13]} 31. Rxe1 {[%clk 0:00:05]}  Nf6 {[%clk 0:00:12]} 32. Re7 {[%clk 0:00:04]}  b5 {[%clk 0:00:10]} 33. Ra7 {[%clk 0:00:02]}  b4 {[%clk 0:00:07]} 34. Rxa6 {[%clk 0:00:02]}  bxc3 {[%clk 0:00:06]} 35. bxc3 {[%clk 0:00:02]}  Ne4 {[%clk 0:00:05]} 0-1


[Site "https://www.chess.com"]

[Event "Titled Tuesday Blitz July 25 Early 2023"]
[White "Carrasco Miranda, Andres"]
[Black "Gyulamiryan-koryun"]
[WhiteFideId "3405990"]
[WhiteElo "2427"]
[BlackElo "2043"]
[Result "1-0"]
[Round "2"]
[TimeControl "180+2"]
[Date "2023.07.25"]
[WhiteClock "0:01:12"]
[BlackClock "0:00:05"]
[Board "247"]

1. d4 {[%clk 0:02:54]}  Nf6 {[%clk 0:02:59]} 2. c4 {[%clk 0:02:54]}  e6 {[%clk 0:02:59]} 3. g3 {[%clk 0:02:54]}  d5 {[%clk 0:02:59]} 4. Bg2 {[%clk 0:02:55]}  Bb4+ {[%clk 0:02:57]} 5. Nd2 {[%clk 0:02:54]}  O-O {[%clk 0:02:56]} 6. Nf3 {[%clk 0:02:54]}  dxc4 {[%clk 0:02:48]} 7. O-O {[%clk 0:02:54]}  c5 {[%clk 0:02:42]} 8. dxc5 {[%clk 0:02:51]}  Bxc5 {[%clk 0:02:38]} 9. Nxc4 {[%clk 0:02:51]}  Nc6 {[%clk 0:02:38]} 10. Bf4 {[%clk 0:02:51]}  Nd5 {[%clk 0:02:31]} 11. Nfe5 {[%clk 0:02:48]}  Nxf4 {[%clk 0:02:15]} 12. gxf4 {[%clk 0:02:49]}  Qh4 {[%clk 0:01:55]} 13. e3 {[%clk 0:02:36]}  Nxe5 {[%clk 0:01:44]} 14. Nxe5 {[%clk 0:02:37]}  Rb8 {[%clk 0:01:42]} 15. Rc1 {[%clk 0:02:33]}  Be7 {[%clk 0:01:31]} 16. Rc7 {[%clk 0:02:29]}  Bf6 {[%clk 0:01:08]} 17. Qc2 {[%clk 0:01:48]}  Bxe5 {[%clk 0:00:54]} 18. fxe5 {[%clk 0:01:49]}  Qg5 {[%clk 0:00:54]} 19. Rc1 {[%clk 0:01:37]}  h6 {[%clk 0:00:41]} 20. f4 {[%clk 0:01:30]}  Qf5 {[%clk 0:00:32]} 21. Qxf5 {[%clk 0:01:28]}  exf5 {[%clk 0:00:32]} 22. Bd5 {[%clk 0:01:24]}  Be6 {[%clk 0:00:22]} 23. Bxe6 {[%clk 0:01:24]}  fxe6 {[%clk 0:00:22]} 24. Kf2 {[%clk 0:01:24]}  Rfd8 {[%clk 0:00:20]} 25. Rg1 {[%clk 0:01:22]}  g5 {[%clk 0:00:17]} 26. fxg5 {[%clk 0:01:22]}  h5 {[%clk 0:00:17]} 27. g6 {[%clk 0:01:17]}  Rd2+ {[%clk 0:00:16]} 28. Kf3 {[%clk 0:01:17]}  Rxb2 {[%clk 0:00:15]} 29. Rd1 {[%clk 0:01:13]}  Rxh2 {[%clk 0:00:09]} 30. Rdd7 {[%clk 0:01:12]}  Rh3+ {[%clk 0:00:09]} 31. Kf4 {[%clk 0:01:12]}  Rh4+ {[%clk 0:00:08]} 32. Kg5 {[%clk 0:01:13]}  Rg4+ {[%clk 0:00:08]} 33. Kh6 {[%clk 0:01:13]}  h4 {[%clk 0:00:05]} 34. Rg7+ {[%clk 0:01:12]}  Kf8 {[%clk 0:00:05]} 35. Rcf7+ {[%clk 0:01:12]} 1-0


[Site "https://www.chess.com"]

[Event "Titled Tuesday Blitz July 25 Early 2023"]
[White "Rangel, Daniel"]
[Black "Castillo Pena, Patricia Evarista"]
[WhiteFideId "2124475"]
[BlackFideId "6412106"]
[WhiteElo "2419"]
[BlackElo "1999"]
[Result "1-0"]
[Round "2"]
[TimeControl "180+2"]
[Date "2023.07.25"]
[WhiteClock "0:00:50"]
[BlackClock "0:00:05"]
[Board "251"]

1. c4 {[%clk 0:03:00]}  c6 {[%clk 0:02:58]} 2. d4 {[%clk 0:03:01]}  d5 {[%clk 0:02:57]} 3. Nc3 {[%clk 0:03:00]}  Nf6 {[%clk 0:02:57]} 4. Bg5 {[%clk 0:02:59]}  e6 {[%clk 0:02:56]} 5. e3 {[%clk 0:02:59]}  Be7 {[%clk 0:02:55]} 6. Bd3 {[%clk 0:02:59]}  dxc4 {[%clk 0:02:54]} 7. Bxc4 {[%clk 0:02:58]}  b5 {[%clk 0:02:55]} 8. Bd3 {[%clk 0:02:58]}  Bb7 {[%clk 0:02:55]} 9. Nf3 {[%clk 0:02:57]}  Nbd7 {[%clk 0:02:55]} 10. O-O {[%clk 0:02:56]}  h6 {[%clk 0:02:55]} 11. Bh4 {[%clk 0:02:56]}  a6 {[%clk 0:02:55]} 12. a3 {[%clk 0:02:56]}  c5 {[%clk 0:02:55]} 13. Re1 {[%clk 0:02:43]}  O-O {[%clk 0:02:50]} 14. e4 {[%clk 0:02:41]}  cxd4 {[%clk 0:02:44]} 15. Nxd4 {[%clk 0:02:33]}  Rc8 {[%clk 0:02:41]} 16. Bc2 {[%clk 0:02:21]}  Qc7 {[%clk 0:02:34]} 17. Bb3 {[%clk 0:02:16]}  Nc5 {[%clk 0:02:19]} 18. Ba2 {[%clk 0:02:14]}  Nfxe4 {[%clk 0:01:59]} 19. Nxe4 {[%clk 0:02:00]}  Nxe4 {[%clk 0:01:51]} 20. Bxe7 {[%clk 0:01:34]}  Qxe7 {[%clk 0:01:49]} 21. Qg4 {[%clk 0:01:35]}  Nf6 {[%clk 0:01:27]} 22. Qh3 {[%clk 0:01:27]}  Bd5 {[%clk 0:01:21]} 23. Nf5 {[%clk 0:01:21]}  Qc5 {[%clk 0:00:42]} 24. Nxh6+ {[%clk 0:01:16]}  gxh6 {[%clk 0:00:37]} 25. Qxh6 {[%clk 0:01:17]}  Bxa2 {[%clk 0:00:27]} 26. Qxf6 {[%clk 0:01:08]}  Qf5 {[%clk 0:00:12]} 27. Qxf5 {[%clk 0:01:05]}  exf5 {[%clk 0:00:13]} 28. Rxa2 {[%clk 0:01:05]}  Rc2 {[%clk 0:00:14]} 29. g3 {[%clk 0:01:00]}  Rd8 {[%clk 0:00:13]} 30. Re3 {[%clk 0:00:56]}  Rdd2 {[%clk 0:00:12]} 31. Rf3 {[%clk 0:00:56]}  Kg7 {[%clk 0:00:05]} 32. Rxf5 {[%clk 0:00:54]}  a5 {[%clk 0:00:05]} 33. Ra1 {[%clk 0:00:49]}  Rxb2 {[%clk 0:00:04]} 34. Re1 {[%clk 0:00:50]}  b4 {[%clk 0:00:05]} 35. axb4 {[%clk 0:00:50]}  axb4 {[%clk 0:00:05]} 36. Re7 {[%clk 0:00:50]} 1-0


[Site "https://www.chess.com"]

[Event "Titled Tuesday Blitz July 25 Early 2023"]
[White "Graham, Nathaniel"]
[Black "Balla, Tamas-Kristof"]
[WhiteFideId "2007983"]
[BlackFideId "1208497"]
[WhiteElo "1974"]
[BlackElo "2417"]
[Result "0-1"]
[Round "2"]
[TimeControl "180+2"]
[Date "2023.07.25"]
[WhiteClock "0:00:10"]
[BlackClock "0:00:55"]
[Board "252"]

1. e4 {[%clk 0:03:00]}  c5 {[%clk 0:03:00]} 2. Nf3 {[%clk 0:03:00]}  Nc6 {[%clk 0:03:00]} 3. d4 {[%clk 0:03:00]}  cxd4 {[%clk 0:03:01]} 4. Nxd4 {[%clk 0:03:00]}  e5 {[%clk 0:03:02]} 5. Nb5 {[%clk 0:02:59]}  d6 {[%clk 0:03:02]} 6. c4 {[%clk 0:02:59]}  Be7 {[%clk 0:03:01]} 7. Bd3 {[%clk 0:02:58]}  a6 {[%clk 0:02:55]} 8. N5a3 {[%clk 0:02:54]}  Bg5 {[%clk 0:02:55]} 9. Nc3 {[%clk 0:02:54]}  Bxc1 {[%clk 0:02:55]} 10. Rxc1 {[%clk 0:02:54]}  Nge7 {[%clk 0:02:55]} 11. O-O {[%clk 0:02:54]}  O-O {[%clk 0:02:55]} 12. Nd5 {[%clk 0:02:54]}  Be6 {[%clk 0:02:48]} 13. Nc2 {[%clk 0:02:44]}  f5 {[%clk 0:02:45]} 14. Nxe7+ {[%clk 0:02:26]}  Nxe7 {[%clk 0:02:27]} 15. exf5 {[%clk 0:02:23]}  Bxf5 {[%clk 0:02:08]} 16. Bxf5 {[%clk 0:02:22]}  Nxf5 {[%clk 0:02:09]} 17. Qd5+ {[%clk 0:01:50]}  Kh8 {[%clk 0:02:05]} 18. f4 {[%clk 0:01:33]}  exf4 {[%clk 0:01:57]} 19. b3 {[%clk 0:00:54]}  Ne3 {[%clk 0:01:35]} 20. Nxe3 {[%clk 0:00:53]}  fxe3 {[%clk 0:01:35]} 21. Qxb7 {[%clk 0:00:35]}  Qh4 {[%clk 0:01:22]} 22. g3 {[%clk 0:00:20]}  Qd4 {[%clk 0:01:14]} 23. Qd5 {[%clk 0:00:10]}  Qb6 {[%clk 0:00:55]} 0-1


[Site "https://www.chess.com"]